bitfinex-derivatives/quotes_BTCF0:USTF0_20250811
["timestamp","ask_amount","ask_price","bid_price","bid_amount"]
[1754884337087,0.75661307,121820.0,121810.0,2.20831082]
[1754884337287,0.75661307,121820.0,121810.0,2.47599306]
[1754884337686,0.75661307,121820.0,121810.0,2.31480906]
[1754884337888,9.307e-05,121820.0,121810.0,2.31480906]
[1754884338088,0.75661307,121820.0,121810.0,2.31480906]
[1754884338486,9.307e-05,121820.0,121810.0,2.31480906]
[1754884338688,0.08217747,121820.0,121810.0,1.78432682]
[1754884338886,9.307e-05,121820.0,121810.0,1.78432682]
[1754884339295,9.307e-05,121820.0,121810.0,2.04800906]
[1754884339589,9.307e-05,121820.0,121810.0,2.05100906]
[1754884339797,0.75653307,121820.0,121810.0,2.05100906]
[1754884339990,9.307e-05,121820.0,121810.0,2.05100906]
[1754884340192,0.75653307,121820.0,121810.0,2.05000906]
[1754884340494,0.75653307,121820.0,121810.0,2.05300906]
[1754884340896,0.75653307,121820.0,121810.0,2.05000906]
[1754884341088,0.75653307,121820.0,121810.0,2.05100906]
[1754884341287,0.75653307,121820.0,121810.0,2.28628539]
[1754884341687,9.307e-05,121820.0,121810.0,2.28728539]
[1754884342091,0.75653307,121820.0,121810.0,2.28728539]
[1754884342498,9.307e-05,121820.0,121810.0,2.01960315]
[1754884342891,9.307e-05,121820.0,121810.0,1.51960315]
[1754884343294,0.75653307,121820.0,121810.0,1.78728539]
[1754884343594,0.75653307,121820.0,121810.0,1.78528539]
[1754884343806,9.307e-05,121820.0,121810.0,1.51960315]
[1754884343987,0.75653307,121820.0,121810.0,1.78628539]
[1754884344300,9.307e-05,121820.0,121810.0,1.78628539]
[1754884344502,0.75689307,121820.0,121810.0,1.78628539]
[1754884344799,9.307e-05,121820.0,121810.0,1.78628539]
[1754884345197,9.307e-05,121820.0,121810.0,1.97781758]
[1754884345402,0.75685307,121820.0,121810.0,1.74254125]
[1754884347503,0.75685307,121820.0,121810.0,2.00534125]
[1754884348801,0.75685307,121820.0,121810.0,1.81380906]
[1754884349417,0.75685307,121820.0,121810.0,1.54612682]
[1754884349598,0.75685307,121820.0,121810.0,1.81380906]
[1754884350094,0.75685307,121820.0,121810.0,2.00534125]
[1754884350703,0.75685307,121820.0,121810.0,2.00944125]
[1754884352407,9.307e-05,121820.0,121810.0,1.81790906]
[1754884352595,9.307e-05,121820.0,121810.0,1.55022682]
[1754884352905,0.76129307,121820.0,121810.0,1.81790906]
[1754884353108,9.307e-05,121820.0,121810.0,1.55022682]
[1754884353404,0.76125307,121820.0,121810.0,1.55022682]
[1754884353602,0.76125307,121820.0,121810.0,1.81790906]
[1754884354806,0.76125307,121820.0,121810.0,2.00944125]
[1754884355303,0.75140507,121820.0,121810.0,2.00944125]
[1754884355606,0.75140507,121820.0,121810.0,2.24467584]
[1754884355901,0.1642577,121830.0,121810.0,2.40885424]
[1754884356104,0.76308,121820.0,121810.0,1.66438155]
[1754884356605,0.76308,121820.0,121810.0,1.89764155]
[1754884357001,0.76308,121820.0,121810.0,1.89564155]
[1754884357306,0.76308,121820.0,121810.0,2.16532379]
[1754884357493,0.76308,121820.0,121810.0,1.97620746]
[1754884357700,0.1642577,121830.0,121820.0,0.2756144]
[1754884357898,0.9270377,121830.0,121820.0,0.82281664]
[1754884358093,0.9270377,121830.0,121820.0,0.94632094]
[1754884358298,0.9269177,121830.0,121820.0,1.02840589]
[1754884358708,0.1641577,121830.0,121820.0,1.02840589]
[1754884358898,0.1641577,121830.0,121820.0,0.76072365]
[1754884359099,0.9276777,121830.0,121820.0,1.02840589]
[1754884359705,0.9276777,121830.0,121820.0,1.02940589]
[1754884360306,0.9276777,121830.0,121820.0,1.2647527]
[1754884360508,0.1641577,121830.0,121820.0,1.2657527]
[1754884360707,0.9276777,121830.0,121820.0,1.2657527]
[1754884361210,0.1641577,121830.0,121820.0,1.2657527]
[1754884361504,0.9273577,121830.0,121820.0,1.2657527]
[1754884361807,0.9271977,121830.0,121820.0,1.2657527]
[1754884362209,0.1641577,121830.0,121820.0,1.2657527]
[1754884362409,0.9270777,121830.0,121820.0,1.03040589]
[1754884362910,0.1641577,121830.0,121820.0,1.03040589]
[1754884363106,0.9268377,121830.0,121820.0,0.76272365]
[1754884363407,0.9268377,121830.0,121820.0,1.03040589]
[1754884364511,0.9268377,121830.0,121820.0,1.2657527]
[1754884364712,0.9267977,121830.0,121820.0,1.2657527]
[1754884365014,0.76264,121830.0,121820.0,1.6265527]
[1754884365410,1.8236474,121840.0,121820.0,2.0535215]
[1754884365710,1.7415697,121840.0,121830.0,0.54328994]
[1754884366014,2.5067097,121840.0,121830.0,0.54338994]
[1754884366206,2.1459097,121840.0,121830.0,0.94638468]
[1754884366413,2.1459097,121840.0,121830.0,0.76078066]
[1754884366712,1.298592,121840.0,121830.0,0.76078066]
[1754884366915,2.063792,121840.0,121830.0,0.76078066]
[1754884367512,1.13444,121840.0,121830.0,1.6520629]
[1754884367815,0.164233,121850.0,121840.0,0.47295]
[1754884368011,0.929333,121850.0,121840.0,0.82280324]
[1754884368208,0.929333,121850.0,121840.0,0.95009467]
[1754884368508,0.929333,121850.0,121840.0,1.03217289]
[1754884369313,0.164133,121850.0,121840.0,1.03217289]
[1754884369514,0.929253,121850.0,121840.0,0.76449065]
[1754884370712,0.929253,121850.0,121840.0,0.76549065]
[1754884372215,0.929253,121850.0,121840.0,0.76649065]
[1754884373416,0.929253,121850.0,121840.0,0.95764326]
[1754884374011,0.164133,121850.0,121840.0,1.2253255]
[1754884374214,0.928133,121850.0,121840.0,1.04743231]
[1754884374415,0.8459444,121850.0,121840.0,1.56070331]
[1754884374714,0.0820644,121850.0,121840.0,0.65127941]
[1754884374906,1.11350664,121850.0,121840.0,0.93069941]
[1754884375110,1.11394664,121850.0,121840.0,0.93069941]
[1754884375418,0.8464244,121850.0,121840.0,0.93069941]
[1754884375616,0.0820644,121850.0,121840.0,0.93069941]
[1754884376012,0.8463844,121850.0,121840.0,0.93069941]
[1754884376417,0.87477364,121860.0,121850.0,0.5550142]
[1754884376418,0.6891558,121860.0,121850.0,0.5550142]
[1754884376614,0.6890558,121860.0,121850.0,0.5551142]
[1754884376815,1.3716314,121860.0,121850.0,0.67761618]
[1754884377011,1.3716314,121860.0,121850.0,0.75968766]
[1754884377215,0.6069914,121860.0,121850.0,0.75968766]
[1754884377415,1.3716314,121860.0,121850.0,0.75968766]
[1754884377717,0.6069914,121860.0,121850.0,0.75968766]
[1754884377918,1.3716714,121860.0,121850.0,0.75968766]
[1754884379113,1.289607,121860.0,121850.0,0.75968766]
[1754884379429,1.289367,121860.0,121850.0,0.75968766]
[1754884379814,1.289247,121860.0,121850.0,0.75968766]
[1754884380311,0.3608,121860.0,121850.0,0.75968766]
[1754884380515,0.60714219,121870.0,121860.0,0.3217477]
[1754884380816,1.37192219,121870.0,121860.0,0.3218477]
[1754884381023,1.37192219,121870.0,121860.0,0.67777325]
[1754884381214,0.60704219,121870.0,121860.0,0.75983126]
[1754884381513,1.37192219,121870.0,121860.0,0.75983126]
[1754884381710,0.60704219,121870.0,121860.0,0.75983126]
[1754884381914,1.37184219,121870.0,121860.0,0.75983126]
[1754884382114,0.60904219,121870.0,121860.0,0.75983126]
[1754884382424,1.37456219,121870.0,121860.0,0.75983126]
[1754884382723,1.64224443,121870.0,121860.0,0.75983126]
[1754884383216,1.64216443,121870.0,121860.0,0.68530126]
[1754884383717,1.64204443,121870.0,121860.0,0.68530126]
[1754884384118,0.87772443,121870.0,121860.0,0.68530126]
[1754884384318,1.64208443,121870.0,121860.0,0.68530126]
[1754884384519,1.64196443,121870.0,121860.0,0.75983126]
[1754884385122,0.87772443,121870.0,121860.0,0.75983126]
[1754884385316,1.64192443,121870.0,121860.0,0.75983126]
[1754884385718,1.37416219,121870.0,121860.0,0.75983126]
[1754884385912,1.64184443,121870.0,121860.0,0.75983126]
[1754884386212,1.64176443,121870.0,121860.0,0.75983126]
[1754884386619,0.87772443,121870.0,121860.0,0.75983126]
[1754884386817,1.64172443,121870.0,121860.0,0.75983126]
[1754884387218,1.64184443,121870.0,121860.0,0.75983126]
[1754884387626,0.87772443,121870.0,121860.0,0.75983126]
[1754884387926,1.64184443,121870.0,121860.0,0.75983126]
[1754884388127,0.87772443,121870.0,121860.0,0.75983126]
[1754884388328,1.64176443,121870.0,121860.0,0.75983126]
[1754884388524,0.61004219,121870.0,121860.0,0.75613126]
[1754884388823,0.44592849,121870.0,121860.0,0.75613126]
[1754884389026,0.36387729,121870.0,121860.0,1.0238135]
[1754884389229,0.76679729,121870.0,121860.0,0.75613126]
[1754884389519,0.00307729,121870.0,121860.0,1.3846135]
[1754884389718,0.76687729,121870.0,121860.0,1.3846135]
[1754884390119,0.00307729,121870.0,121860.0,1.3846135]
[1754884390321,0.76368,121870.0,121860.0,1.64210686]
[1754884390522,0.0001,121880.0,121870.0,0.5470509]
[1754884390719,1.13418,121890.0,121880.0,0.5470442]
[1754884390914,1.89768,121890.0,121880.0,1.17562644]
[1754884391114,1.13258082,121890.0,121880.0,1.11300261]
[1754884391525,2.14847832,121890.0,121880.0,1.25220261]
[1754884391827,1.43052832,121890.0,121880.0,1.25220261]
[1754884392524,2.06101056,121890.0,121880.0,0.70515841]
[1754884392828,2.06101056,121890.0,121880.0,0.20515841]
[1754884393122,2.55660832,121890.0,121880.0,0.20515841]
[1754884393427,2.82429056,121890.0,121880.0,0.20515841]
[1754884393626,2.06101056,121890.0,121880.0,0.20515841]
[1754884393927,1.79332832,121890.0,121880.0,0.20515841]
[1754884394231,2.06101056,121890.0,121880.0,0.20515841]
[1754884394530,2.83033056,121890.0,121880.0,0.20515841]
[1754884394719,2.83025056,121890.0,121880.0,0.20515841]
[1754884395223,2.83017056,121890.0,121880.0,0.20515841]
[1754884395421,2.06101056,121890.0,121880.0,0.20515841]
[1754884396024,2.82989056,121890.0,121880.0,0.20515841]
[1754884396224,2.82977056,121890.0,121880.0,0.20515841]
[1754884396529,2.06101056,121890.0,121880.0,0.20515841]
[1754884396728,2.82969056,121890.0,121880.0,0.20515841]
[1754884396927,2.82961056,121890.0,121880.0,0.20515841]
[1754884397129,2.06101056,121890.0,121880.0,0.20515841]
[1754884397525,2.06101056,121890.0,121880.0,0.2704817]
[1754884397728,2.82941056,121890.0,121880.0,0.2745817]
[1754884398031,2.82741056,121890.0,121880.0,0.2745817]
[1754884398225,2.82825056,121890.0,121880.0,0.2745817]
[1754884398627,2.22409856,121890.0,121880.0,0.2745817]
[1754884398823,2.99481856,121890.0,121860.0,0.2103895]
[1754884399025,0.74127324,121870.0,121860.0,0.2103895]
[1754884399226,0.74127324,121870.0,121860.0,0.25063173]
[1754884399432,0.473591,121870.0,121860.0,0.33268301]
[1754884399621,0.473591,121870.0,121860.0,0.60819301]
[1754884399825,1.245791,121870.0,121860.0,0.37863301]
[1754884400026,1.245791,121870.0,121860.0,0.57088562]
[1754884400532,1.245791,121870.0,121860.0,0.48882932]
[1754884400730,1.245791,121870.0,121860.0,0.49282932]
[1754884400931,1.245791,121870.0,121860.0,0.75467932]
[1754884401131,1.245791,121870.0,121860.0,0.56552671]
[1754884401335,1.10207324,121870.0,121860.0,0.21154671]
[1754884401628,1.10207324,121870.0,121860.0,0.25772671]
[1754884401833,1.87387324,121870.0,121860.0,0.25772671]
[1754884402525,1.87387324,121870.0,121860.0,0.25672671]
[1754884403032,1.87387324,121870.0,121860.0,0.25472671]
[1754884403428,1.10207324,121870.0,121860.0,0.20854671]
[1754884403628,1.10207324,121870.0,121860.0,0.39969932]
[1754884403629,1.26619324,121870.0,121860.0,0.39969932]
[1754884403834,1.26619324,121870.0,121860.0,0.38787932]
[1754884404036,2.03755324,121870.0,121860.0,0.38787932]
[1754884404228,1.769871,121870.0,121860.0,0.38787932]
[1754884404424,0.998511,121870.0,121860.0,0.38387932]
[1754884404628,1.26619324,121870.0,121860.0,0.38387932]
[1754884404927,1.770791,121870.0,121860.0,0.38397122]
[1754884405133,1.26719324,121870.0,121860.0,0.38397122]
[1754884405436,2.03839324,121870.0,121860.0,0.38397122]
[1754884405735,2.03823324,121870.0,121860.0,0.38397122]
[1754884406128,1.26719324,121870.0,121860.0,0.38397122]
[1754884406329,2.03815324,121870.0,121860.0,0.38397122]
[1754884406730,2.03799324,121870.0,121860.0,0.38397122]
[1754884407034,1.770311,121870.0,121860.0,0.38397122]
[1754884407228,2.03783324,121870.0,121860.0,0.38397122]
[1754884407731,2.03771324,121870.0,121860.0,0.38397122]
[1754884408230,2.03763324,121870.0,121860.0,0.38397122]
[1754884408536,1.26719324,121870.0,121860.0,0.19281861]
[1754884408737,2.03747324,121870.0,121860.0,0.19281861]
[1754884409234,2.03739324,121870.0,121860.0,0.19281861]
[1754884409734,2.03723324,121870.0,121860.0,0.19281861]
[1754884410131,1.26719324,121870.0,121860.0,0.19281861]
[1754884410336,1.26719324,121870.0,121860.0,0.23899861]
[1754884410337,2.03711324,121870.0,121860.0,0.23899861]
[1754884410637,1.26719324,121870.0,121860.0,0.23899861]
[1754884410826,2.03715324,121870.0,121860.0,0.23899861]
[1754884411239,2.03699324,121870.0,121860.0,0.23899861]
[1754884411830,0.999511,121870.0,121860.0,0.23899861]
[1754884412025,1.26719324,121870.0,121860.0,0.23899861]
[1754884412430,2.03747324,121870.0,121860.0,0.23899861]
[1754884412631,1.26719324,121870.0,121860.0,0.23899861]
[1754884412831,2.03739324,121870.0,121860.0,0.23899861]
[1754884413031,2.03735324,121870.0,121860.0,0.23899861]
[1754884413335,2.03731324,121870.0,121860.0,0.23899861]
[1754884413540,1.26719324,121870.0,121860.0,0.23899861]
[1754884414435,2.03711324,121870.0,121860.0,0.24299861]
[1754884414638,1.26719324,121870.0,121860.0,0.24299861]
[1754884415034,2.03687324,121870.0,121860.0,0.24299861]
[1754884415236,1.26719324,121870.0,121860.0,0.24299861]
[1754884415535,2.03679324,121870.0,121860.0,0.24299861]
[1754884415735,1.26719324,121870.0,121860.0,0.24299861]
[1754884416137,2.03667324,121870.0,121860.0,0.24299861]
[1754884416834,1.768991,121870.0,121860.0,0.24299861]
[1754884417235,2.03667324,121870.0,121860.0,0.24299861]
[1754884418740,1.10307324,121870.0,121860.0,0.24299861]
[1754884419146,1.87239324,121870.0,121860.0,0.24299861]
[1754884419439,1.10307324,121870.0,121860.0,0.24299861]
[1754884419837,1.10307324,121870.0,121860.0,0.43448425]
[1754884420037,1.604511,121870.0,121860.0,0.43448425]
[1754884420242,1.10307324,121870.0,121860.0,0.43448425]
[1754884420541,1.87107324,121870.0,121860.0,0.43448425]
[1754884421040,1.10407324,121870.0,121860.0,0.43448425]
[1754884421342,1.87295324,121870.0,121860.0,0.43448425]
[1754884421843,1.87287324,121870.0,121860.0,0.43448425]
[1754884422044,1.10407324,121870.0,121860.0,0.43448425]
[1754884422344,1.87271324,121870.0,121860.0,0.43448425]
[1754884422642,1.10407324,121870.0,121860.0,0.43448425]
[1754884422833,1.87259324,121870.0,121860.0,0.43448425]
[1754884423036,0.836391,121870.0,121860.0,0.43448425]
[1754884423235,1.87259324,121870.0,121860.0,0.43448425]
[1754884424837,1.87259324,121870.0,121860.0,0.24299861]
[1754884425039,1.604791,121870.0,121860.0,0.24299861]
[1754884425340,1.87247324,121870.0,121860.0,0.24299861]
[1754884425844,1.10407324,121870.0,121860.0,0.24299861]
[1754884426040,1.87319324,121870.0,121860.0,0.24299861]
[1754884426241,1.10407324,121870.0,121860.0,0.24299861]
[1754884426441,1.87315324,121870.0,121860.0,0.24299861]
[1754884428340,1.605471,121870.0,121860.0,0.43448425]
[1754884428544,1.87315324,121870.0,121860.0,0.43448425]
[1754884431451,1.10407324,121870.0,121860.0,0.43448425]
[1754884431651,1.87211324,121870.0,121860.0,0.43448425]
[1754884432052,1.87211324,121870.0,121860.0,0.24299861]
[1754884432946,1.10407324,121870.0,121860.0,0.24299861]
[1754884433150,1.87183324,121870.0,121860.0,0.24299861]
[1754884435648,1.10407324,121870.0,121860.0,0.24299861]
[1754884435850,1.87091324,121870.0,121860.0,0.24299861]
[1754884436555,2.23807324,121870.0,121860.0,0.24299861]
[1754884437153,3.00463324,121870.0,121860.0,0.24299861]
[1754884437352,2.23807324,121870.0,121860.0,0.24299861]
[1754884437754,3.00471324,121870.0,121860.0,0.24299861]
[1754884437956,2.23807324,121870.0,121860.0,0.24299861]
[1754884438448,3.00471324,121870.0,121860.0,0.24299861]
[1754884438649,2.23807324,121870.0,121860.0,0.24299861]
[1754884438848,3.00471324,121870.0,121860.0,0.43474661]
[1754884439050,2.23807324,121870.0,121860.0,0.43474661]
[1754884439248,3.00479324,121870.0,121860.0,0.43474661]
[1754884439458,2.737031,121870.0,121860.0,0.43474661]
[1754884439758,3.00471324,121870.0,121860.0,0.43474661]
[1754884441157,3.00471324,121870.0,121860.0,0.24299861]
[1754884441658,2.40219324,121870.0,121860.0,0.19681861]
[1754884441859,2.134511,121870.0,121860.0,0.38857839]
[1754884442152,2.40219324,121870.0,121860.0,0.43369839]
[1754884442357,3.17171324,121870.0,121860.0,0.43369839]
[1754884442558,3.17171324,121870.0,121860.0,0.38857839]
[1754884442748,2.40219324,121870.0,121860.0,0.38857839]
[1754884442954,3.17163324,121870.0,121860.0,0.33209339]
[1754884443155,2.40219324,121870.0,121860.0,0.20919049]
[1754884443451,2.40219324,121870.0,121860.0,0.28058411]
[1754884443656,3.17155324,121870.0,121860.0,0.36264212]
[1754884443858,2.40219324,121870.0,121860.0,0.36264212]
[1754884444058,3.17131324,121870.0,121860.0,0.36264212]
[1754884444253,2.40219324,121870.0,121860.0,0.36271434]
[1754884444558,3.17127324,121870.0,121860.0,0.36281434]
[1754884444862,3.17119324,121870.0,121860.0,0.36281434]
[1754884445058,2.40219324,121870.0,121860.0,0.36281434]
[1754884445451,3.17095324,121870.0,121860.0,0.36281434]
[1754884445653,2.40419324,121870.0,121860.0,0.36281434]
[1754884445852,3.17287324,121870.0,121860.0,0.36281434]
[1754884446057,3.17303324,121870.0,121860.0,0.36281434]
[1754884446262,2.40419324,121870.0,121860.0,0.36281434]
[1754884446451,3.17311324,121870.0,121860.0,0.36281434]
[1754884446856,2.40419324,121870.0,121860.0,0.36281434]
[1754884447161,3.17311324,121870.0,121860.0,0.36281434]
[1754884447562,2.40419324,121870.0,121860.0,0.36281434]
[1754884447762,3.17299324,121870.0,121860.0,0.36281434]
[1754884447960,2.40419324,121870.0,121860.0,0.36281434]
[1754884448163,3.17291324,121870.0,121860.0,0.36681434]
[1754884448360,2.136511,121870.0,121860.0,0.41403434]
[1754884448558,3.17279324,121870.0,121860.0,0.41403434]
[1754884448759,2.40419324,121870.0,121860.0,0.41403434]
[1754884449153,3.17339324,121870.0,121860.0,0.41403434]
[1754884449353,2.40419324,121870.0,121860.0,0.41403434]
[1754884449560,3.17331324,121870.0,121860.0,0.41403434]
[1754884449860,2.905591,121870.0,121860.0,0.41403434]
[1754884450060,2.40419324,121870.0,121860.0,0.41403434]
[1754884450256,3.17379324,121870.0,121860.0,0.41403434]
[1754884450562,2.40419324,121870.0,121860.0,0.25684535]
[1754884450960,3.17367324,121870.0,121860.0,0.25684535]
[1754884451155,2.40419324,121870.0,121860.0,0.25684535]
[1754884451663,3.17415324,121870.0,121860.0,0.25684535]
[1754884452062,2.40419324,121870.0,121860.0,0.25684535]
[1754884452960,2.906151,121870.0,121860.0,0.25684535]
[1754884453167,2.40419324,121870.0,121860.0,0.25684535]
[1754884453959,3.17471324,121870.0,121860.0,0.25684535]
[1754884454160,2.40419324,121870.0,121860.0,0.25684535]
[1754884454767,3.17455324,121870.0,121860.0,0.25684535]
[1754884455071,2.40419324,121870.0,121860.0,0.25684535]
[1754884455368,3.17431324,121870.0,121860.0,0.25684535]
[1754884455568,2.40419324,121870.0,121860.0,0.25684535]
[1754884455771,3.17423324,121870.0,121860.0,0.25684535]
[1754884455959,2.40419324,121870.0,121860.0,0.25684535]
[1754884456363,3.17403324,121870.0,121860.0,0.41403434]
[1754884456964,2.40419324,121870.0,121860.0,0.41403434]
[1754884457470,3.17379324,121870.0,121860.0,0.41403434]
[1754884457970,2.40419324,121870.0,121860.0,0.41403434]
[1754884458671,3.17347324,121870.0,121860.0,0.41403434]
[1754884458973,3.17339324,121870.0,121860.0,0.41403434]
[1754884459171,2.40419324,121870.0,121860.0,0.41403434]
[1754884459672,3.17323324,121870.0,121860.0,0.41403434]
[1754884459871,2.40419324,121870.0,121860.0,0.41403434]
[1754884460071,3.17315324,121870.0,121860.0,0.41403434]
[1754884460268,2.40419324,121870.0,121860.0,0.41403434]
[1754884461069,3.17283324,121870.0,121860.0,0.41403434]
[1754884461274,1.972391,121870.0,121860.0,0.83927434]
[1754884461473,3.00867324,121870.0,121860.0,0.83927434]
[1754884461667,2.97793324,121870.0,121860.0,0.83927434]
[1754884461868,1.941651,121870.0,121860.0,1.18901378]
[1754884462072,1.941651,121870.0,121860.0,1.23901378]
[1754884462073,2.349251,121870.0,121860.0,1.23901378]
[1754884462275,2.349251,121870.0,121860.0,1.08182479]
[1754884462471,2.349251,121870.0,121860.0,0.81414255]
[1754884462776,2.347251,121870.0,121860.0,0.81414255]
[1754884462975,1.578851,121870.0,121860.0,0.81414255]
[1754884463176,1.578851,121870.0,121860.0,0.81014255]
[1754884463566,2.346971,121870.0,121860.0,0.81014255]
[1754884464179,1.578851,121870.0,121860.0,0.81014255]
[1754884464566,2.346691,121870.0,121860.0,0.81014255]
[1754884465473,0.911,121870.0,121860.0,1.08182479]
[1754884465673,0.611,121870.0,121860.0,1.44262479]
[1754884465876,0.536,121870.0,121860.0,1.44262479]
[1754884466177,1.30616,121870.0,121860.0,1.44262479]
[1754884466780,0.6180505,121870.0,121860.0,1.63419435]
[1754884466976,1.3880505,121870.0,121860.0,1.63419435]
[1754884467781,1.3880505,121870.0,121860.0,1.36651211]
[1754884467977,0.6180505,121870.0,121860.0,1.36651211]
[1754884468280,1.3879305,121870.0,121860.0,1.63419435]
[1754884468579,1.3878505,121870.0,121860.0,1.63419435]
[1754884468981,1.3876905,121870.0,121860.0,1.27339435]
[1754884469490,0.6180505,121870.0,121860.0,1.27339435]
[1754884469675,1.3875305,121870.0,121860.0,1.27339435]
[1754884469879,1.3875305,121870.0,121860.0,1.00571211]
[1754884470477,1.3875305,121870.0,121860.0,0.81414255]
[1754884470676,0.6180505,121870.0,121860.0,0.81414255]
[1754884471075,1.6747905,121870.0,121860.0,0.76414255]
[1754884471382,1.94247274,121870.0,121860.0,0.76414255]
[1754884471584,1.94247274,121870.0,121860.0,0.95571211]
[1754884471783,1.6747905,121870.0,121860.0,0.95571211]
[1754884471985,1.0970105,121870.0,121860.0,0.95571211]
[1754884472684,1.8658105,121870.0,121860.0,0.95571211]
[1754884472983,1.8658105,121870.0,121860.0,0.76414255]
[1754884473182,1.0970105,121870.0,121860.0,0.99948936]
[1754884473484,1.8656505,121870.0,121860.0,0.99948936]
[1754884474386,1.8655705,121870.0,121860.0,0.99948936]
[1754884474584,1.8672105,121870.0,121860.0,0.99948936]
[1754884474984,1.0239805,121870.0,121860.0,0.99948936]
[1754884475187,1.7943005,121870.0,121860.0,0.76414255]
[1754884475584,1.71391274,121870.0,121860.0,0.40109987]
[1754884475777,1.71391274,121870.0,121860.0,0.39709987]
[1754884476183,2.48411274,121870.0,121860.0,0.39709987]
[1754884476688,2.48407274,121870.0,121860.0,0.39709987]
[1754884476990,1.71391274,121870.0,121860.0,0.39709987]
[1754884478082,1.71391274,121870.0,121860.0,0.20562535]
[1754884478283,2.48367274,121870.0,121860.0,0.20562535]
[1754884478990,2.48359274,121870.0,121860.0,0.20562535]
[1754884479182,2.2157505,121870.0,121860.0,0.20562535]
[1754884479383,1.71391274,121870.0,121860.0,0.20562535]
[1754884479783,2.48331274,121870.0,121860.0,0.20562535]
[1754884480088,1.71391274,121870.0,121860.0,0.20562535]
[1754884480392,2.48323274,121870.0,121860.0,0.20562535]
[1754884480585,1.71391274,121870.0,121860.0,0.20562535]
[1754884480783,1.4462305,121870.0,121860.0,0.20562535]
[1754884481088,1.71391274,121870.0,121860.0,0.20962535]
[1754884481288,1.4462305,121870.0,121860.0,0.20962535]
[1754884481583,1.4462305,121870.0,121860.0,0.68225535]
[1754884481584,1.71391274,121870.0,121860.0,0.68225535]
[1754884482288,2.2153505,121870.0,121860.0,0.68225535]
[1754884482489,1.4462305,121870.0,121860.0,0.68225535]
[1754884482789,1.4462305,121870.0,121860.0,0.76431275]
[1754884482981,1.4462305,121870.0,121860.0,0.68225535]
[1754884483182,1.71391274,121870.0,121860.0,0.91760216]
[1754884484180,2.48263274,121870.0,121860.0,0.91760216]
[1754884484380,2.48259274,121870.0,121860.0,0.91760216]
[1754884484585,1.17991274,121870.0,121860.0,0.91760216]
[1754884485186,1.17991274,121870.0,121860.0,0.68225535]
[1754884485389,1.94867274,121870.0,121860.0,0.68225535]
[1754884485589,1.17991274,121870.0,121860.0,0.68225535]
[1754884485990,1.94851274,121870.0,121860.0,0.68225535]
[1754884486192,1.17991274,121870.0,121860.0,0.68225535]
[1754884486787,1.94831274,121870.0,121860.0,0.68225535]
[1754884487092,1.17991274,121870.0,121860.0,0.68225535]
[1754884487485,1.94815274,121870.0,121860.0,0.68225535]
[1754884487691,1.17991274,121870.0,121860.0,0.68225535]
[1754884488087,1.6803105,121870.0,121860.0,0.67825535]
[1754884488394,1.94795274,121870.0,121860.0,0.67825535]
[1754884488594,1.17991274,121870.0,121860.0,0.67825535]
[1754884488784,0.9122305,121870.0,121860.0,0.44199535]
[1754884488990,1.6801105,121870.0,121860.0,0.67825535]
[1754884489197,0.9122305,121870.0,121860.0,0.67825535]
[1754884489587,1.17991274,121870.0,121860.0,0.67825535]
[1754884489992,1.94759274,121870.0,121860.0,0.67825535]
[1754884490500,1.94751274,121870.0,121860.0,0.67825535]
[1754884491003,1.94743274,121870.0,121860.0,0.67825535]
[1754884491389,1.17991274,121870.0,121860.0,0.67825535]
[1754884491594,1.94727274,121870.0,121860.0,0.67825535]
[1754884491899,1.17991274,121870.0,121860.0,0.67825535]
[1754884492109,1.94715274,121870.0,121860.0,0.67825535]
[1754884492407,1.17991274,121870.0,121860.0,0.67825535]
[1754884492609,1.94703274,121870.0,121860.0,0.67825535]
[1754884492997,1.17991274,121870.0,121860.0,0.67825535]
[1754884493201,1.17991274,121870.0,121860.0,0.68225535]
[1754884493606,1.94667274,121870.0,121860.0,0.68225535]
[1754884495210,1.17991274,121870.0,121860.0,0.68225535]
[1754884495410,1.94627274,121870.0,121860.0,0.68225535]
[1754884497104,1.94627274,121870.0,121860.0,0.76431295]
[1754884497300,1.6785905,121870.0,121860.0,0.76431295]
[1754884497505,0.9122305,121870.0,121860.0,0.76431295]
[1754884497903,1.6780305,121870.0,121860.0,0.76431295]
[1754884498110,1.6779905,121870.0,121860.0,0.76431295]
[1754884498302,0.9122305,121870.0,121860.0,0.76431295]
[1754884498803,1.6778305,121870.0,121860.0,0.76431295]
[1754884499003,1.6777905,121870.0,121860.0,0.76431295]
[1754884499404,0.9122305,121870.0,121860.0,0.76431295]
[1754884499711,1.94547274,121870.0,121860.0,0.76431295]
[1754884500006,1.94531274,121870.0,121860.0,0.76431295]
[1754884500205,1.94531274,121870.0,121860.0,0.68225535]
[1754884500405,1.17991274,121870.0,121860.0,0.39839535]
[1754884500599,1.94527274,121870.0,121860.0,0.28866535]
[1754884501504,1.17991274,121870.0,121860.0,0.28866535]
[1754884501814,1.17991274,121870.0,121860.0,0.44575669]
[1754884502006,1.94551274,121870.0,121860.0,0.44575669]
[1754884503206,0.0820711,121840.0,121830.0,0.72871824]
[1754884503399,0.8633711,121840.0,121830.0,0.96497824]
[1754884503599,1.6742011,121840.0,121830.0,1.08771476]
[1754884503806,1.6741611,121840.0,121830.0,1.13531476]
[1754884504004,0.9084811,121840.0,121830.0,1.21737277]
[1754884504406,0.9084811,121840.0,121830.0,1.21946836]
[1754884504613,1.3132011,121840.0,121830.0,1.21956836]
[1754884504801,1.3130811,121840.0,121830.0,1.21956836]
[1754884505007,1.3130811,121840.0,121830.0,0.92584712]
[1754884505514,0.9084811,121840.0,121830.0,0.92884712]
[1754884505809,1.6738811,121840.0,121830.0,0.84677072]
[1754884506015,1.6736811,121840.0,121830.0,0.84677072]
[1754884506411,0.9084811,121840.0,121830.0,0.84677072]
[1754884506716,1.6736811,121840.0,121830.0,0.84677072]
[1754884506916,0.9084811,121840.0,121830.0,0.84677072]
[1754884507108,1.6737611,121840.0,121830.0,0.84677072]
[1754884507508,0.9084811,121840.0,121830.0,0.84677072]
[1754884507711,0.9084811,121840.0,121830.0,0.85077072]
[1754884508309,1.6738411,121840.0,121830.0,0.85077072]
[1754884508611,1.6737611,121840.0,121830.0,0.85077072]
[1754884509010,1.6736811,121840.0,121830.0,0.85077072]
[1754884509413,1.6736811,121840.0,121830.0,0.76869542]
[1754884509414,0.9084811,121840.0,121830.0,0.76869542]
[1754884509617,0.9084811,121840.0,121830.0,0.68662012]
[1754884509912,1.6735611,121840.0,121830.0,0.76569782]
[1754884510119,1.6741611,121840.0,121830.0,0.76569782]
[1754884510318,1.6741611,121840.0,121830.0,0.76669782]
[1754884510623,1.6740811,121840.0,121830.0,0.68462012]
[1754884510806,1.6740811,121840.0,121830.0,0.76669782]
[1754884511011,0.9084811,121840.0,121830.0,0.76669782]
[1754884511211,1.6738811,121840.0,121830.0,0.76669782]
[1754884511522,1.3978011,121840.0,121830.0,0.76669782]
[1754884511815,1.3978011,121840.0,121830.0,0.76269782]
[1754884511816,1.6834911,121840.0,121830.0,0.76269782]
[1754884512119,1.6840511,121840.0,121830.0,0.76269782]
[1754884512510,0.9181311,121840.0,121830.0,0.76269782]
[1754884512706,1.6840511,121840.0,121830.0,0.76269782]